[Event "*** Titled Tuesday Blitz"]
[Site "Chess.com"]
[Date "2020.04.21"]
[Round "8"]
[White "Filip_Covic"]
[Black "picturesquecheck"]
[Result "0-1"]
[WhiteElo "2277"]
[BlackElo "2201"]
[TimeControl "180+1"]
[EndTime "11:36:57 PDT"]
[Termination "picturesquecheck won by resignation"]

1. d4 {[%clk 0:03:00.9]} 1... Nf6 {[%clk 0:02:59.6]} 2. c4 {[%clk 0:03:00.4]}
2... e6 {[%clk 0:02:59.9]} 3. Nf3 {[%clk 0:02:59.6]} 3... d5 {[%clk 0:03:00.2]}
4. Nc3 {[%clk 0:02:58.4]} 4... dxc4 {[%clk 0:02:59.7]} 5. e3 {[%clk 0:02:58.3]}
5... a6 {[%clk 0:02:58.6]} 6. a4 {[%clk 0:02:58.4]} 6... c5 {[%clk 0:02:55.4]}
7. Bxc4 {[%clk 0:02:56.9]} 7... cxd4 {[%clk 0:02:55.5]} 8. exd4 {[%clk
0:02:51.6]} 8... Be7 {[%clk 0:02:55.5]} 9. O-O {[%clk 0:02:51.2]} 9... O-O
{[%clk 0:02:55.5]} 10. Qe2 {[%clk 0:02:51.3]} 10... b6 {[%clk 0:02:52.9]} 11.
Bg5 {[%clk 0:02:50.3]} 11... Bb7 {[%clk 0:02:51.1]} 12. Rad1 {[%clk 0:02:49.6]}
12... Qc7 {[%clk 0:02:45.4]} 13. Bb3 {[%clk 0:02:43.3]} 13... Nc6 {[%clk
0:02:39.4]} 14. Ne5 {[%clk 0:02:38.1]} 14... Na5 {[%clk 0:02:35]} 15. Bc2 {[%clk
0:02:32.2]} 15... Rac8 {[%clk 0:02:29.8]} 16. Qd3 {[%clk 0:02:20]} 16... g6
{[%clk 0:02:28.5]} 17. f4 {[%clk 0:02:02.1]} 17... Nc6 {[%clk 0:02:26.5]} 18.
Qh3 {[%clk 0:01:15.6]} 18... Rfd8 {[%clk 0:02:13.7]} 19. Nxf7 {[%clk 0:00:21]}
19... Kxf7 {[%clk 0:01:59]} 20. Bxf6 {[%clk 0:00:21.3]} 20... Bxf6 {[%clk
0:01:58.7]} 21. Qxh7+ {[%clk 0:00:20.1]} 21... Kf8 {[%clk 0:01:49.4]} 22. Qxg6
{[%clk 0:00:09.1]} 22... Qg7 {[%clk 0:01:48.5]} 23. Qxg7+ {[%clk 0:00:06.1]}
23... Kxg7 {[%clk 0:01:45.7]} 24. d5 {[%clk 0:00:05.3]} 24... Nd4 {[%clk
0:01:40.6]} 25. Bb3 {[%clk 0:00:03.4]} 25... Nxb3 {[%clk 0:01:40.1]} 0-1

[Event "*** Titled Tuesday Blitz"]
[Site "Chess.com"]
[Date "2020.04.21"]
[Round "8"]
[White "12teen"]
[Black "vovachesss"]
[Result "1-0"]
[WhiteElo "2770"]
[BlackElo "2624"]
[TimeControl "180+1"]
[EndTime "11:37:02 PDT"]
[Termination "12teen won by resignation"]

1. g3 {[%clk 0:03:00.9]} 1... e5 {[%clk 0:02:58.1]} 2. Bg2 {[%clk 0:03:01.8]}
2... h5 {[%clk 0:02:58.3]} 3. Nc3 {[%clk 0:03:00.1]} 3... h4 {[%clk 0:02:58.1]}
4. g4 {[%clk 0:03:00.5]} 4... h3 {[%clk 0:02:48.3]} 5. Nxh3 {[%clk 0:03:00]}
5... d5 {[%clk 0:02:48.7]} 6. e3 {[%clk 0:02:52.5]} 6... Nf6 {[%clk 0:02:43.9]}
7. f3 {[%clk 0:02:39.9]} 7... d4 {[%clk 0:02:31.6]} 8. exd4 {[%clk 0:02:29.9]}
8... exd4 {[%clk 0:02:31.7]} 9. Ne2 {[%clk 0:02:26.7]} 9... d3 {[%clk
0:02:28.3]} 10. cxd3 {[%clk 0:02:23]} 10... Nc6 {[%clk 0:02:28.3]} 11. O-O
{[%clk 0:02:16.5]} 11... Bc5+ {[%clk 0:02:23.1]} 12. Kh1 {[%clk 0:02:16.7]}
12... Qd6 {[%clk 0:02:03.1]} 13. d4 {[%clk 0:02:12.3]} 13... Nxd4 {[%clk
0:02:01.2]} 14. b4 {[%clk 0:02:01.4]} 14... Bb6 {[%clk 0:01:30.4]} 15. Bb2
{[%clk 0:01:51.2]} 15... Bd7 {[%clk 0:01:19.5]} 16. Nxd4 {[%clk 0:01:47.9]}
16... Bxd4 {[%clk 0:01:19.5]} 17. Bxd4 {[%clk 0:01:46.8]} 17... Qxd4 {[%clk
0:01:20.4]} 18. Qe2+ {[%clk 0:01:46.8]} 18... Kf8 {[%clk 0:01:18.4]} 19. Qe3
{[%clk 0:01:32.4]} 19... Qd6 {[%clk 0:00:57.9]} 20. Qc5 {[%clk 0:01:18.6]} 20...
Qxc5 {[%clk 0:00:44.9]} 21. bxc5 {[%clk 0:01:18.8]} 21... Bc6 {[%clk 0:00:45.8]}
22. d4 {[%clk 0:01:11.8]} 22... Rd8 {[%clk 0:00:37.6]} 23. Rad1 {[%clk
0:01:09.2]} 23... Nd5 {[%clk 0:00:37]} 24. Rfe1 {[%clk 0:01:05.1]} 24... Nf4
{[%clk 0:00:37.9]} 25. Nxf4 {[%clk 0:01:04.1]} 1-0

[Event "*** Titled Tuesday Blitz"]
[Site "Chess.com"]
[Date "2020.04.21"]
[Round "8"]
[White "Grieve72"]
[Black "flomarechot"]
[Result "1-0"]
[WhiteElo "2330"]
[BlackElo "2105"]
[TimeControl "180+1"]
[EndTime "11:37:05 PDT"]
[Termination "Grieve72 won by resignation"]

1. e4 {[%clk 0:03:00.9]} 1... c5 {[%clk 0:02:56.3]} 2. Nf3 {[%clk 0:03:01.2]}
2... e6 {[%clk 0:02:56.4]} 3. d4 {[%clk 0:03:01.6]} 3... cxd4 {[%clk 0:02:57.3]}
4. Nxd4 {[%clk 0:03:02.5]} 4... Nf6 {[%clk 0:02:57.7]} 5. Nc3 {[%clk 0:03:02.5]}
5... a6 {[%clk 0:02:56.5]} 6. Be3 {[%clk 0:02:58]} 6... Qc7 {[%clk 0:02:56.4]}
7. f3 {[%clk 0:02:53.1]} 7... Bb4 {[%clk 0:02:55.9]} 8. Qd2 {[%clk 0:02:47.7]}
8... Bxc3 {[%clk 0:02:56]} 9. bxc3 {[%clk 0:02:46.5]} 9... d6 {[%clk 0:02:52.9]}
10. g4 {[%clk 0:02:33.8]} 10... Nbd7 {[%clk 0:02:49.2]} 11. g5 {[%clk
0:02:31.9]} 11... Nh5 {[%clk 0:02:49.1]} 12. Be2 {[%clk 0:02:23.4]} 12... g6
{[%clk 0:02:41.3]} 13. f4 {[%clk 0:02:19]} 13... e5 {[%clk 0:02:23.3]} 14. Bxh5
{[%clk 0:02:18.1]} 14... gxh5 {[%clk 0:02:20.6]} 15. Nf5 {[%clk 0:02:16.4]}
15... O-O {[%clk 0:02:01.9]} 16. O-O {[%clk 0:01:57.1]} 16... Nc5 {[%clk
0:02:01.6]} 17. Nxd6 {[%clk 0:01:45.2]} 17... Rd8 {[%clk 0:01:26.6]} 18. fxe5
{[%clk 0:01:44.7]} 18... Nxe4 {[%clk 0:01:26.6]} 19. Qd4 {[%clk 0:01:24.4]}
19... Nxd6 {[%clk 0:01:18.2]} 20. Rad1 {[%clk 0:01:21]} 20... Bh3 {[%clk
0:00:56.7]} 21. exd6 {[%clk 0:01:16.5]} 21... Qc6 {[%clk 0:00:56.6]} 22. Rf2
{[%clk 0:01:12]} 22... Rac8 {[%clk 0:00:52]} 23. Qf6 {[%clk 0:01:08.2]} 23...
Qe4 {[%clk 0:00:33.6]} 24. Qxf7+ {[%clk 0:01:06]} 24... Kh8 {[%clk 0:00:30.9]}
25. Bd4+ {[%clk 0:01:06.9]} 1-0

[Event "*** Titled Tuesday Blitz"]
[Site "Chess.com"]
[Date "2020.04.21"]
[Round "8"]
[White "Leonid_Starozhilov"]
[Black "Spring199"]
[Result "1-0"]
[WhiteElo "2641"]
[BlackElo "2403"]
[TimeControl "180+1"]
[EndTime "11:37:09 PDT"]
[Termination "Leonid_Starozhilov won on time"]

1. b3 {[%clk 0:03:00.9]} 1... e5 {[%clk 0:02:58.7]} 2. Bb2 {[%clk 0:03:00.5]}
2... d6 {[%clk 0:02:55.6]} 3. e3 {[%clk 0:02:59.9]} 3... g6 {[%clk 0:02:51.6]}
4. c4 {[%clk 0:02:58.4]} 4... Bg7 {[%clk 0:02:50.9]} 5. g3 {[%clk 0:02:57]} 5...
Ne7 {[%clk 0:02:50.9]} 6. Bg2 {[%clk 0:02:56.9]} 6... O-O {[%clk 0:02:51]} 7.
Ne2 {[%clk 0:02:56.1]} 7... f5 {[%clk 0:02:50.2]} 8. O-O {[%clk 0:02:53.1]} 8...
c6 {[%clk 0:02:48]} 9. Nbc3 {[%clk 0:02:44.8]} 9... Nd7 {[%clk 0:02:46.7]} 10.
d4 {[%clk 0:02:39.1]} 10... Nf6 {[%clk 0:02:41.7]} 11. c5 {[%clk 0:02:15.3]}
11... exd4 {[%clk 0:02:12.6]} 12. cxd6 {[%clk 0:02:00]} 12... Qxd6 {[%clk
0:02:08]} 13. Nxd4 {[%clk 0:01:52.9]} 13... Ned5 {[%clk 0:01:56.7]} 14. Ndb5
{[%clk 0:01:34.4]} 14... cxb5 {[%clk 0:01:29.6]} 15. Nxd5 {[%clk 0:01:28.5]}
15... Nxd5 {[%clk 0:01:15.8]} 16. Qxd5+ {[%clk 0:01:26]} 16... Qxd5 {[%clk
0:01:10.8]} 17. Bxd5+ {[%clk 0:01:26.9]} 17... Kh8 {[%clk 0:01:11.1]} 18. Bxg7+
{[%clk 0:01:27.2]} 18... Kxg7 {[%clk 0:01:11.4]} 19. Rac1 {[%clk 0:01:28]} 19...
Rd8 {[%clk 0:01:06.1]} 20. Rc7+ {[%clk 0:01:22.7]} 1-0

[Event "*** Titled Tuesday Blitz"]
[Site "Chess.com"]
[Date "2020.04.21"]
[Round "8"]
[White "LikeWater"]
[Black "Philosopherrr"]
[Result "1-0"]
[WhiteElo "2672"]
[BlackElo "2491"]
[TimeControl "180+1"]
[EndTime "11:37:10 PDT"]
[Termination "LikeWater won on time"]

1. e4 {[%clk 0:03:00.9]} 1... e5 {[%clk 0:02:53.8]} 2. Nf3 {[%clk 0:03:00.9]}
2... Nc6 {[%clk 0:02:54.3]} 3. Bc4 {[%clk 0:03:01.1]} 3... Bc5 {[%clk
0:02:54.5]} 4. c3 {[%clk 0:03:01.6]} 4... Nf6 {[%clk 0:02:54.9]} 5. d3 {[%clk
0:03:02.2]} 5... O-O {[%clk 0:02:55.1]} 6. O-O {[%clk 0:03:02.2]} 6... d6 {[%clk
0:02:55.4]} 7. Bb3 {[%clk 0:03:01.9]} 7... h6 {[%clk 0:02:54.6]} 8. h3 {[%clk
0:03:01.7]} 8... a5 {[%clk 0:02:50.3]} 9. Nbd2 {[%clk 0:03:00.7]} 9... Nh5
{[%clk 0:02:34.5]} 10. Nxe5 {[%clk 0:02:45.2]} 10... dxe5 {[%clk 0:02:24.8]} 11.
Qxh5 {[%clk 0:02:43.8]} 11... Qxd3 {[%clk 0:02:24.8]} 12. Bc4 {[%clk 0:02:33.2]}
12... Qg3 {[%clk 0:02:24.2]} 13. Nf3 {[%clk 0:02:12.8]} 13... Be6 {[%clk
0:02:09.3]} 14. Bd5 {[%clk 0:02:09.1]} 14... Rae8 {[%clk 0:01:29.4]} 15. Bxc6
{[%clk 0:01:45.7]} 15... bxc6 {[%clk 0:01:21.1]} 16. Qxe5 {[%clk 0:01:18]} 16...
Qxe5 {[%clk 0:01:08]} 17. Nxe5 {[%clk 0:01:18.9]} 17... Bxh3 {[%clk 0:01:06.5]}
18. Nd3 {[%clk 0:01:19.2]} 18... Bxg2 {[%clk 0:00:46.3]} 19. Kxg2 {[%clk
0:01:17]} 1-0

[Event "*** Titled Tuesday Blitz"]
[Site "Chess.com"]
[Date "2020.04.21"]
[Round "8"]
[White "GamayevOleg"]
[Black "Corpescador"]
[Result "1-0"]
[WhiteElo "2539"]
[BlackElo "2387"]
[TimeControl "180+1"]
[EndTime "11:37:12 PDT"]
[Termination "GamayevOleg won by resignation"]

1. d3 {[%clk 0:03:00.9]} 1... d5 {[%clk 0:02:55.3]} 2. e4 {[%clk 0:03:01.8]}
2... e6 {[%clk 0:02:47.1]} 3. Nf3 {[%clk 0:03:00.6]} 3... Nf6 {[%clk 0:02:46.6]}
4. Nbd2 {[%clk 0:03:00.2]} 4... Be7 {[%clk 0:02:44.6]} 5. Be2 {[%clk 0:03:00.4]}
5... c5 {[%clk 0:02:44.4]} 6. c3 {[%clk 0:03:00.5]} 6... Nc6 {[%clk 0:02:44.6]}
7. exd5 {[%clk 0:03:01.1]} 7... Nxd5 {[%clk 0:02:43.1]} 8. Nb3 {[%clk
0:03:00.9]} 8... b6 {[%clk 0:02:38.9]} 9. O-O {[%clk 0:03:00.6]} 9... Bb7 {[%clk
0:02:38.8]} 10. a4 {[%clk 0:03:00.8]} 10... O-O {[%clk 0:02:29.2]} 11. Re1
{[%clk 0:03:01.1]} 11... Qc7 {[%clk 0:02:20.8]} 12. Qc2 {[%clk 0:03:00.3]} 12...
Rad8 {[%clk 0:02:03.1]} 13. Bf1 {[%clk 0:02:59.6]} 13... h6 {[%clk 0:01:49.9]}
14. Nfd2 {[%clk 0:02:58.2]} 14... Nf4 {[%clk 0:01:39.7]} 15. Ne4 {[%clk
0:02:55.4]} 15... f5 {[%clk 0:01:27.4]} 16. Ned2 {[%clk 0:02:40.8]} 16... Ne5
{[%clk 0:01:16.1]} 17. Re3 {[%clk 0:02:30.8]} 17... Ng4 {[%clk 0:01:01.2]} 18.
Rg3 {[%clk 0:02:30.5]} 18... Bh4 {[%clk 0:00:42.7]} 19. Nf3 {[%clk 0:02:20.8]}
19... Bxg3 {[%clk 0:00:37.1]} 20. hxg3 {[%clk 0:02:21.7]} 20... Nd5 {[%clk
0:00:33]} 21. Nbd2 {[%clk 0:02:12.2]} 21... e5 {[%clk 0:00:27.2]} 22. Nc4 {[%clk
0:02:10]} 22... Rde8 {[%clk 0:00:21]} 23. Bd2 {[%clk 0:02:08.4]} 23... Rf6
{[%clk 0:00:18]} 24. Re1 {[%clk 0:02:07.1]} 24... Rfe6 {[%clk 0:00:16.2]} 25.
Nh4 {[%clk 0:02:04.4]} 25... Qf7 {[%clk 0:00:15]} 26. f3 {[%clk 0:01:59.1]}
26... g5 {[%clk 0:00:12.5]} 27. fxg4 {[%clk 0:01:57.1]} 27... gxh4 {[%clk
0:00:12.7]} 28. gxf5 {[%clk 0:01:57.3]} 28... Qxf5 {[%clk 0:00:12.8]} 29. gxh4
{[%clk 0:01:52]} 29... Nf4 {[%clk 0:00:13.1]} 30. Bxf4 {[%clk 0:01:49.5]} 30...
exf4 {[%clk 0:00:13.2]} 31. Nd6 {[%clk 0:01:46.5]} 31... Qd5 {[%clk 0:00:10.3]}
32. Nxe8 {[%clk 0:01:44.3]} 32... Rxe1 {[%clk 0:00:09.7]} 33. Nf6+ {[%clk
0:01:44.3]} 33... Kf7 {[%clk 0:00:09.2]} 34. Nxd5 {[%clk 0:01:44.9]} 34... Bxd5
{[%clk 0:00:10.1]} 35. Qf2 {[%clk 0:01:44.9]} 35... Re6 {[%clk 0:00:09.6]} 1-0

[Event "*** Titled Tuesday Blitz"]
[Site "Chess.com"]
[Date "2020.04.21"]
[Round "8"]
[White "DucksParadise"]
[Black "narutosmith"]
[Result "0-1"]
[WhiteElo "2070"]
[BlackElo "2258"]
[TimeControl "180+1"]
[EndTime "11:37:15 PDT"]
[Termination "narutosmith won by resignation"]

1. e4 {[%clk 0:03:00.9]} 1... c5 {[%clk 0:02:58.9]} 2. Be2 {[%clk 0:02:58.8]}
2... Nc6 {[%clk 0:02:58]} 3. f4 {[%clk 0:02:56.6]} 3... g6 {[%clk 0:02:54.5]} 4.
Nf3 {[%clk 0:02:55.2]} 4... Bg7 {[%clk 0:02:55.1]} 5. c3 {[%clk 0:02:54.1]} 5...
d5 {[%clk 0:02:52.1]} 6. d3 {[%clk 0:02:53.5]} 6... e6 {[%clk 0:02:47.4]} 7. O-O
{[%clk 0:02:48.8]} 7... Nge7 {[%clk 0:02:47.9]} 8. a4 {[%clk 0:02:17.5]} 8...
O-O {[%clk 0:02:47.4]} 9. Na3 {[%clk 0:02:13.2]} 9... a6 {[%clk 0:02:47.7]} 10.
Nc2 {[%clk 0:02:03.2]} 10... Rb8 {[%clk 0:02:46.6]} 11. Be3 {[%clk 0:01:53.6]}
11... b6 {[%clk 0:02:17.1]} 12. Qe1 {[%clk 0:01:42.1]} 12... Bb7 {[%clk
0:02:07.9]} 13. Qh4 {[%clk 0:01:24.5]} 13... Qc7 {[%clk 0:01:57.6]} 14. f5
{[%clk 0:01:10.5]} 14... exf5 {[%clk 0:01:54.3]} 15. Bh6 {[%clk 0:01:08.9]}
15... dxe4 {[%clk 0:01:46.8]} 16. Ng5 {[%clk 0:00:55.5]} 16... Qe5 {[%clk
0:01:38.6]} 17. Nxh7 {[%clk 0:00:19.7]} 17... Bxh6 {[%clk 0:01:02.7]} 18. Qxh6
{[%clk 0:00:07]} 18... Qh8 {[%clk 0:01:02.6]} 0-1

[Event "*** Titled Tuesday Blitz"]
[Site "Chess.com"]
[Date "2020.04.21"]
[Round "8"]
[White "ElHelvetico"]
[Black "Izoria123"]
[Result "0-1"]
[WhiteElo "2648"]
[BlackElo "2790"]
[TimeControl "180+1"]
[EndTime "11:37:16 PDT"]
[Termination "Izoria123 won by resignation"]

1. e4 {[%clk 0:03:00.9]} 1... c5 {[%clk 0:02:58.8]} 2. Nf3 {[%clk 0:03:00.5]}
2... a6 {[%clk 0:02:59.4]} 3. c3 {[%clk 0:02:58.7]} 3... e6 {[%clk 0:02:59.2]}
4. d4 {[%clk 0:02:58.5]} 4... d5 {[%clk 0:02:59.8]} 5. e5 {[%clk 0:02:58.6]}
5... Bd7 {[%clk 0:02:59.6]} 6. Bd3 {[%clk 0:02:57.8]} 6... cxd4 {[%clk
0:02:58.4]} 7. cxd4 {[%clk 0:02:58.7]} 7... Bb5 {[%clk 0:02:57.7]} 8. O-O {[%clk
0:02:51.6]} 8... Bxd3 {[%clk 0:02:56.9]} 9. Qxd3 {[%clk 0:02:52.5]} 9... Ne7
{[%clk 0:02:56.1]} 10. Nc3 {[%clk 0:02:48.5]} 10... Nec6 {[%clk 0:02:53.1]} 11.
Bg5 {[%clk 0:02:38.7]} 11... Be7 {[%clk 0:02:48.7]} 12. h4 {[%clk 0:02:37.1]}
12... Nd7 {[%clk 0:02:47.3]} 13. Rac1 {[%clk 0:02:36.4]} 13... h6 {[%clk
0:02:46.1]} 14. Bxe7 {[%clk 0:02:36]} 14... Qxe7 {[%clk 0:02:47]} 15. h5 {[%clk
0:02:35.5]} 15... O-O {[%clk 0:02:46.4]} 16. Rfe1 {[%clk 0:02:31.2]} 16... Rac8
{[%clk 0:02:43.8]} 17. Qd2 {[%clk 0:02:23.1]} 17... Rc7 {[%clk 0:02:34.8]} 18.
Re3 {[%clk 0:02:13.6]} 18... Nb6 {[%clk 0:02:26.2]} 19. b3 {[%clk 0:02:13]}
19... Rfc8 {[%clk 0:02:25.4]} 20. Ne1 {[%clk 0:02:09.1]} 20... Qh4 {[%clk
0:02:17.3]} 21. Ne2 {[%clk 0:01:59.8]} 21... Nxd4 {[%clk 0:02:11.9]} 22. Rxc7
{[%clk 0:01:59.3]} 22... Nxe2+ {[%clk 0:02:11.7]} 23. Qxe2 {[%clk 0:02:00.2]}
23... Rxc7 {[%clk 0:02:11.5]} 24. g3 {[%clk 0:01:59.4]} 24... Qd4 {[%clk
0:02:08.1]} 25. Kg2 {[%clk 0:01:48.7]} 25... Nd7 {[%clk 0:02:06.7]} 26. Nf3
{[%clk 0:01:15.5]} 26... Qg4 {[%clk 0:02:03.3]} 27. Qd2 {[%clk 0:01:15.8]} 27...
Qxh5 {[%clk 0:02:01.5]} 28. Rc3 {[%clk 0:01:16.4]} 28... Rc6 {[%clk 0:01:02.6]}
29. Rxc6 {[%clk 0:01:13.3]} 29... bxc6 {[%clk 0:01:03.5]} 30. Qc3 {[%clk
0:00:49.6]} 30... c5 {[%clk 0:01:02.2]} 31. b4 {[%clk 0:00:45.4]} 31... d4
{[%clk 0:00:53.4]} 32. Qc4 {[%clk 0:00:44.8]} 32... Qxf3+ {[%clk 0:00:51.5]} 0-1

[Event "*** Titled Tuesday Blitz"]
[Site "Chess.com"]
[Date "2020.04.21"]
[Round "8"]
[White "Vesper2018"]
[Black "josephymwale33"]
[Result "1-0"]
[WhiteElo "2012"]
[BlackElo "2282"]
[TimeControl "180+1"]
[EndTime "11:37:17 PDT"]
[Termination "Vesper2018 won by checkmate"]

1. e4 {[%clk 0:03:00.3]} 1... e5 {[%clk 0:03:00]} 2. Nf3 {[%clk 0:02:59.9]} 2...
Nc6 {[%clk 0:02:59.9]} 3. Bc4 {[%clk 0:02:59.9]} 3... Nf6 {[%clk 0:02:59.8]} 4.
d3 {[%clk 0:02:59.9]} 4... d5 {[%clk 0:02:57.9]} 5. exd5 {[%clk 0:02:54.7]} 5...
Nxd5 {[%clk 0:02:58.8]} 6. O-O {[%clk 0:02:54.3]} 6... Bc5 {[%clk 0:02:59.3]} 7.
Re1 {[%clk 0:02:41.9]} 7... O-O {[%clk 0:02:59.6]} 8. c3 {[%clk 0:02:41.6]} 8...
Be6 {[%clk 0:02:58.1]} 9. Nbd2 {[%clk 0:02:34.3]} 9... Nf4 {[%clk 0:02:49.7]}
10. Ne4 {[%clk 0:02:26.3]} 10... Bxc4 {[%clk 0:02:28]} 11. Nxc5 {[%clk
0:02:21.5]} 11... Nxd3 {[%clk 0:02:22.6]} 12. Nxd3 {[%clk 0:02:02.3]} 12... Qxd3
{[%clk 0:02:13.7]} 13. Qxd3 {[%clk 0:02:01.3]} 13... Bxd3 {[%clk 0:02:14.6]} 14.
Nxe5 {[%clk 0:01:59.6]} 14... Nxe5 {[%clk 0:02:12.6]} 15. Rxe5 {[%clk
0:01:59.6]} 15... Rfe8 {[%clk 0:02:13]} 16. Bf4 {[%clk 0:01:59]} 16... Rxe5
{[%clk 0:02:08.4]} 17. Bxe5 {[%clk 0:01:59.1]} 17... c5 {[%clk 0:02:06.1]} 18.
Rd1 {[%clk 0:01:57.1]} 18... c4 {[%clk 0:02:06.3]} 19. Bd4 {[%clk 0:01:52]}
19... f6 {[%clk 0:02:03.6]} 20. Re1 {[%clk 0:01:51.1]} 20... Kf7 {[%clk
0:02:03.4]} 21. Bc5 {[%clk 0:01:49.4]} 21... b6 {[%clk 0:01:57.5]} 22. Re7+
{[%clk 0:01:48.8]} 22... Kg6 {[%clk 0:01:57.8]} 23. Bd4 {[%clk 0:01:44.1]} 23...
Rb8 {[%clk 0:01:28.6]} 24. g4 {[%clk 0:01:41.6]} 24... a5 {[%clk 0:01:24.3]} 25.
h4 {[%clk 0:01:36.3]} 25... h6 {[%clk 0:00:42.7]} 26. Kg2 {[%clk 0:01:33.4]}
26... b5 {[%clk 0:00:41.8]} 27. h5+ {[%clk 0:01:29.1]} 27... Kg5 {[%clk
0:00:35.3]} 28. Kg3 {[%clk 0:01:23.1]} 28... f5 {[%clk 0:00:14.8]} 29. Rxg7#
{[%clk 0:01:18.9]} 1-0

[Event "*** Titled Tuesday Blitz"]
[Site "Chess.com"]
[Date "2020.04.21"]
[Round "8"]
[White "WonderChampion"]
[Black "andy_rekt"]
[Result "0-1"]
[WhiteElo "1812"]
[BlackElo "2250"]
[TimeControl "180+1"]
[EndTime "11:37:18 PDT"]
[Termination "andy_rekt won by resignation"]

1. e4 {[%clk 0:03:00.9]} 1... c5 {[%clk 0:02:59.8]} 2. Nf3 {[%clk 0:02:59]} 2...
Nc6 {[%clk 0:03:00.4]} 3. Bb5 {[%clk 0:02:57.5]} 3... g6 {[%clk 0:02:59.9]} 4.
O-O {[%clk 0:02:55.4]} 4... Bg7 {[%clk 0:02:59.3]} 5. c3 {[%clk 0:02:54.7]} 5...
Nf6 {[%clk 0:02:57.7]} 6. Re1 {[%clk 0:02:53.6]} 6... O-O {[%clk 0:02:57.7]} 7.
d4 {[%clk 0:02:52.6]} 7... cxd4 {[%clk 0:02:57.9]} 8. cxd4 {[%clk 0:02:52.1]}
8... d5 {[%clk 0:02:58.5]} 9. e5 {[%clk 0:02:50.4]} 9... Ne4 {[%clk 0:02:59]}
10. Nc3 {[%clk 0:02:38.7]} 10... Nxc3 {[%clk 0:02:57.2]} 11. bxc3 {[%clk
0:02:38.5]} 11... Na5 {[%clk 0:02:55.1]} 12. Bd3 {[%clk 0:02:36.2]} 12... a6
{[%clk 0:02:52.9]} 13. Be3 {[%clk 0:02:32.5]} 13... Bd7 {[%clk 0:02:38.4]} 14.
Rb1 {[%clk 0:02:30.8]} 14... b5 {[%clk 0:02:37.3]} 15. Bd2 {[%clk 0:02:25.5]}
15... Nc4 {[%clk 0:02:36.4]} 16. Bxc4 {[%clk 0:02:24.8]} 16... bxc4 {[%clk
0:02:34]} 17. Be3 {[%clk 0:02:23.7]} 17... Bf5 {[%clk 0:02:31]} 18. Rb2 {[%clk
0:02:22.1]} 18... Rb8 {[%clk 0:02:30.5]} 19. Rxb8 {[%clk 0:02:19.5]} 19... Qxb8
{[%clk 0:02:31.4]} 20. Qd2 {[%clk 0:02:18.1]} 20... Qb7 {[%clk 0:02:22.9]} 21.
h3 {[%clk 0:02:17.2]} 21... Rb8 {[%clk 0:02:21.8]} 22. Bf4 {[%clk 0:02:11.4]}
22... Qb2 {[%clk 0:02:13.3]} 23. e6 {[%clk 0:02:06.1]} 23... Qxd2 {[%clk
0:02:00.6]} 24. exf7+ {[%clk 0:01:47.8]} 24... Kxf7 {[%clk 0:02:01.5]} 25. Nxd2
{[%clk 0:01:42.3]} 25... Rb2 {[%clk 0:01:54.7]} 26. Nf3 {[%clk 0:01:31.5]} 26...
h6 {[%clk 0:01:49.5]} 27. Be5 {[%clk 0:01:21.4]} 27... Bf6 {[%clk 0:01:44.7]}
28. Bxf6 {[%clk 0:01:20.5]} 28... exf6 {[%clk 0:01:44.5]} 29. Ra1 {[%clk
0:01:09.5]} 29... Rc2 {[%clk 0:01:30.8]} 30. Re1 {[%clk 0:01:08]} 30... Rxc3
{[%clk 0:01:28.2]} 31. a4 {[%clk 0:01:07.4]} 31... Ra3 {[%clk 0:01:27.6]} 32.
Nd2 {[%clk 0:01:00.1]} 32... c3 {[%clk 0:01:26.6]} 33. Nf3 {[%clk 0:00:53.8]}
33... Rxa4 {[%clk 0:01:23.8]} 34. Kh2 {[%clk 0:00:51.6]} 34... Rb4 {[%clk
0:01:23.3]} 35. Ra1 {[%clk 0:00:45.1]} 35... c2 {[%clk 0:01:19.3]} 36. Rc1
{[%clk 0:00:41.2]} 36... Rb1 {[%clk 0:01:17.3]} 37. Rxb1 {[%clk 0:00:41.1]}
37... cxb1=Q {[%clk 0:01:17.1]} 0-1

[Event "*** Titled Tuesday Blitz"]
[Site "Chess.com"]
[Date "2020.04.21"]
[Round "8"]
[White "crazy_but_lazy"]
[Black "GMMatamoros"]
[Result "1/2-1/2"]
[WhiteElo "2380"]
[BlackElo "2526"]
[TimeControl "180+1"]
[EndTime "11:37:19 PDT"]
[Termination "Game drawn by agreement"]

1. d4 {[%clk 0:03:00.1]} 1... Nf6 {[%clk 0:02:59.3]} 2. c4 {[%clk 0:03:00.4]}
2... c5 {[%clk 0:02:59.7]} 3. Nf3 {[%clk 0:02:59.8]} 3... cxd4 {[%clk
0:02:59.2]} 4. Nxd4 {[%clk 0:03:00.7]} 4... e5 {[%clk 0:02:59.8]} 5. Nb5 {[%clk
0:02:15.5]} 5... d5 {[%clk 0:02:58.8]} 6. cxd5 {[%clk 0:02:16.4]} 6... Bc5
{[%clk 0:02:58.7]} 7. N5c3 {[%clk 0:02:09.7]} 7... O-O {[%clk 0:02:58.1]} 8. g3
{[%clk 0:01:58.2]} 8... Qb6 {[%clk 0:02:51.9]} 9. e3 {[%clk 0:01:55.9]} 9... Bg4
{[%clk 0:02:52]} 10. Be2 {[%clk 0:01:44.9]} 10... Bf5 {[%clk 0:02:43.9]} 11. O-O
{[%clk 0:01:40.8]} 11... Nbd7 {[%clk 0:02:42.9]} 12. Na4 {[%clk 0:01:37.3]}
12... Qd6 {[%clk 0:02:42.7]} 13. Nxc5 {[%clk 0:01:36.5]} 13... Nxc5 {[%clk
0:02:43.3]} 14. Nc3 {[%clk 0:01:37.3]} 14... Rad8 {[%clk 0:02:40.4]} 15. b3
{[%clk 0:01:19]} 15... Nce4 {[%clk 0:02:39.5]} 16. Nxe4 {[%clk 0:01:08.1]} 16...
Bxe4 {[%clk 0:02:40.4]} 17. Bb2 {[%clk 0:00:53.7]} 17... Nxd5 {[%clk 0:02:31.8]}
18. Bf3 {[%clk 0:00:51.2]} 18... Qg6 {[%clk 0:02:24.8]} 19. Bxe4 {[%clk
0:00:37.5]} 19... Qxe4 {[%clk 0:02:25.7]} 20. Qe2 {[%clk 0:00:37.1]} 20... f6
{[%clk 0:02:22.3]} 21. Rfd1 {[%clk 0:00:35.4]} 21... a6 {[%clk 0:02:19.9]} 22.
Rac1 {[%clk 0:00:32.5]} 22... Nb4 {[%clk 0:02:19.4]} 23. Ba3 {[%clk 0:00:15.7]}
23... a5 {[%clk 0:01:50.7]} 24. Bxb4 {[%clk 0:00:13.5]} 24... Qxb4 {[%clk
0:01:47.3]} 25. Rxd8 {[%clk 0:00:12.6]} 25... Rxd8 {[%clk 0:01:46.6]} 26. Qc4+
{[%clk 0:00:13.2]} 26... Qxc4 {[%clk 0:01:46.2]} 27. Rxc4 {[%clk 0:00:14.1]}
27... Rd2 {[%clk 0:01:34]} 28. Rc7 {[%clk 0:00:14.1]} 28... b5 {[%clk
0:01:30.5]} 29. Rc5 {[%clk 0:00:13.6]} 29... Rxa2 {[%clk 0:01:27]} 30. Rxb5
{[%clk 0:00:13.4]} 1/2-1/2